[Event "*** Titled Tuesday Blitz"]
[Site "Chess.com"]
[Date "2018.05.01"]
[Round "3"]
[White "RojonR"]
[Black "Turkey-Champion"]
[Result "1-0"]
[WhiteElo "2385"]
[BlackElo "2280"]
[TimeControl "180+2"]
[EndTime "13:38:28 PDT"]
[Termination "RojonR won by checkmate"]

1. e4 {[%clk 0:03:01.9]} 1... c5 {[%clk 0:03:00.1]} 2. Nf3 {[%clk 0:03:02.5]}
2... Nc6 {[%clk 0:03:01.1]} 3. Bb5 {[%clk 0:03:03]} 3... g6 {[%clk 0:03:00.9]}
4. Bxc6 {[%clk 0:03:03.7]} 4... bxc6 {[%clk 0:03:00.9]} 5. O-O {[%clk
0:03:04.1]} 5... Bg7 {[%clk 0:03:02.4]} 6. Re1 {[%clk 0:03:04.7]} 6... d6 {[%clk
0:03:03.8]} 7. c3 {[%clk 0:03:03.8]} 7... e5 {[%clk 0:03:05.4]} 8. d4 {[%clk
0:03:04.3]} 8... cxd4 {[%clk 0:02:49.2]} 9. cxd4 {[%clk 0:03:04.8]} 9... Bg4
{[%clk 0:02:50.8]} 10. dxe5 {[%clk 0:02:32.4]} 10... dxe5 {[%clk 0:02:50.6]} 11.
Qc2 {[%clk 0:02:21.7]} 11... Bxf3 {[%clk 0:02:39.2]} 12. Qxc6+ {[%clk
0:02:21.7]} 12... Kf8 {[%clk 0:02:40.3]} 13. Qc5+ {[%clk 0:02:09.6]} 13... Qe7
{[%clk 0:02:37.7]} 14. Qxe7+ {[%clk 0:02:10.2]} 14... Nxe7 {[%clk 0:02:39.6]}
15. gxf3 {[%clk 0:02:10.7]} 15... Nc6 {[%clk 0:02:41.3]} 16. Be3 {[%clk
0:02:07.2]} 16... Rb8 {[%clk 0:02:41.5]} 17. b3 {[%clk 0:02:04]} 17... Nb4
{[%clk 0:02:37.3]} 18. Na3 {[%clk 0:02:00]} 18... Ke8 {[%clk 0:02:27.8]} 19.
Red1 {[%clk 0:01:45.9]} 19... Bf8 {[%clk 0:02:24.7]} 20. Nc4 {[%clk 0:01:42.3]}
20... Be7 {[%clk 0:02:17.6]} 21. Bxa7 {[%clk 0:01:36]} 21... Rb7 {[%clk
0:02:15.3]} 22. Be3 {[%clk 0:01:27.8]} 22... f5 {[%clk 0:02:08.6]} 23. Nxe5
{[%clk 0:01:17.7]} 23... Bf6 {[%clk 0:02:04]} 24. Nc4 {[%clk 0:01:03.2]} 24...
Bxa1 {[%clk 0:02:03.4]} 25. Nd6+ {[%clk 0:01:03.9]} 25... Ke7 {[%clk 0:01:59.7]}
26. Nxb7 {[%clk 0:01:04.3]} 26... Bc3 {[%clk 0:01:52.4]} 27. Bc5+ {[%clk
0:00:55]} 27... Ke6 {[%clk 0:01:52.8]} 28. Nd8+ {[%clk 0:00:44.8]} 28... Ke5
{[%clk 0:01:50.7]} 29. Bxb4 {[%clk 0:00:44.3]} 29... Bxb4 {[%clk 0:01:49]} 30.
Nf7+ {[%clk 0:00:44.1]} 30... Kf4 {[%clk 0:01:50.5]} 31. Nxh8 {[%clk 0:00:44.9]}
31... fxe4 {[%clk 0:01:52.4]} 32. fxe4 {[%clk 0:00:45.5]} 32... Kxe4 {[%clk
0:01:53.5]} 33. Nf7 {[%clk 0:00:46.4]} 33... h5 {[%clk 0:01:52.3]} 34. a4 {[%clk
0:00:45.4]} 34... h4 {[%clk 0:01:53.1]} 35. Nd6+ {[%clk 0:00:45.4]} 35... Kf3
{[%clk 0:01:53]} 36. Nc4 {[%clk 0:00:45.7]} 36... g5 {[%clk 0:01:53]} 37. a5
{[%clk 0:00:46.5]} 37... g4 {[%clk 0:01:54.9]} 38. a6 {[%clk 0:00:46.7]} 38...
Bc5 {[%clk 0:01:56.7]} 39. Rd2 {[%clk 0:00:46.9]} 39... g3 {[%clk 0:01:57.6]}
40. hxg3 {[%clk 0:00:47.7]} 40... hxg3 {[%clk 0:01:59.5]} 41. Rd3+ {[%clk
0:00:44.3]} 41... Ke2 {[%clk 0:01:58.5]} 42. Rxg3 {[%clk 0:00:45.3]} 42... Bxf2+
{[%clk 0:01:58.6]} 43. Kg2 {[%clk 0:00:46.8]} 43... Bxg3 {[%clk 0:02:00.5]} 44.
Kxg3 {[%clk 0:00:48.1]} 44... Kd3 {[%clk 0:02:02.4]} 45. a7 {[%clk 0:00:49]}
45... Kc3 {[%clk 0:02:04.2]} 46. a8=Q {[%clk 0:00:50.2]} 46... Kb4 {[%clk
0:02:06.1]} 47. Ne5 {[%clk 0:00:50.2]} 47... Kxb3 {[%clk 0:02:08]} 48. Qc6
{[%clk 0:00:50.6]} 48... Kb4 {[%clk 0:02:08.9]} 49. Kf3 {[%clk 0:00:51.2]} 49...
Ka3 {[%clk 0:02:10.1]} 50. Qb5 {[%clk 0:00:51.2]} 50... Ka2 {[%clk 0:02:10.3]}
51. Nc4 {[%clk 0:00:52.1]} 51... Ka1 {[%clk 0:02:12.2]} 52. Qb2# {[%clk
0:00:52.9]} 1-0

[Event "*** Titled Tuesday Blitz"]
[Site "Chess.com"]
[Date "2018.05.01"]
[Round "3"]
[White "catalin009"]
[Black "LuisFSiles"]
[Result "0-1"]
[WhiteElo "2383"]
[BlackElo "2238"]
[TimeControl "180+2"]
[EndTime "13:38:30 PDT"]
[Termination "LuisFSiles won by resignation"]

1. Nf3 {[%clk 0:03:00]} 1... g6 {[%clk 0:02:55.8]} 2. c4 {[%clk 0:03:00.9]} 2...
Bg7 {[%clk 0:02:55.6]} 3. d4 {[%clk 0:02:45.6]} 3... Nf6 {[%clk 0:02:55.4]} 4.
Nc3 {[%clk 0:02:43]} 4... O-O {[%clk 0:02:55.2]} 5. e4 {[%clk 0:02:44.5]} 5...
d6 {[%clk 0:02:56.3]} 6. Be2 {[%clk 0:02:45.2]} 6... c5 {[%clk 0:02:57]} 7. d5
{[%clk 0:02:39.4]} 7... e6 {[%clk 0:02:53.8]} 8. O-O {[%clk 0:02:39.9]} 8...
exd5 {[%clk 0:02:54.6]} 9. cxd5 {[%clk 0:02:41]} 9... Bg4 {[%clk 0:02:54.6]} 10.
Nd2 {[%clk 0:02:40.4]} 10... Bxe2 {[%clk 0:02:54.4]} 11. Qxe2 {[%clk 0:02:41.2]}
11... a6 {[%clk 0:02:53.8]} 12. a4 {[%clk 0:02:41.4]} 12... Re8 {[%clk
0:02:51.6]} 13. f3 {[%clk 0:02:37]} 13... Nbd7 {[%clk 0:02:50.7]} 14. Nc4 {[%clk
0:02:36.7]} 14... Ne5 {[%clk 0:02:46.2]} 15. Bf4 {[%clk 0:02:18.4]} 15... Nxc4
{[%clk 0:02:43.5]} 16. Qxc4 {[%clk 0:02:18.8]} 16... Qe7 {[%clk 0:02:17.3]} 17.
a5 {[%clk 0:02:03.4]} 17... Nd7 {[%clk 0:02:13.7]} 18. Na4 {[%clk 0:01:50]}
18... Rab8 {[%clk 0:01:54.3]} 19. Qc2 {[%clk 0:01:44.2]} 19... b5 {[%clk
0:01:46.1]} 20. axb6 {[%clk 0:01:43.9]} 20... Nxb6 {[%clk 0:01:46.5]} 21. b3
{[%clk 0:01:40.6]} 21... Bxa1 {[%clk 0:01:39.3]} 22. Rxa1 {[%clk 0:01:39.8]}
22... Qf6 {[%clk 0:01:31.4]} 23. Qc1 {[%clk 0:01:35.8]} 23... Nxa4 {[%clk
0:01:31.4]} 24. bxa4 {[%clk 0:01:19.4]} 24... Rb4 {[%clk 0:01:07.4]} 25. Bg5
{[%clk 0:01:08.3]} 25... Qd4+ {[%clk 0:01:04.3]} 26. Be3 {[%clk 0:01:08.5]}
26... Qd3 {[%clk 0:00:58.6]} 27. Bh6 {[%clk 0:00:44.6]} 27... Reb8 {[%clk
0:00:55.9]} 28. Qg5 {[%clk 0:00:15.2]} 28... Qd4+ {[%clk 0:00:54.9]} 0-1

[Event "*** Titled Tuesday Blitz"]
[Site "Chess.com"]
[Date "2018.05.01"]
[Round "3"]
[White "lolo9292"]
[Black "Jbd735"]
[Result "0-1"]
[WhiteElo "1796"]
[BlackElo "2348"]
[TimeControl "180+2"]
[EndTime "13:38:43 PDT"]
[Termination "Jbd735 won by checkmate"]

1. d4 {[%clk 0:03:01.9]} 1... d5 {[%clk 0:02:59.9]} 2. c4 {[%clk 0:03:03]} 2...
e6 {[%clk 0:03:00.4]} 3. Nf3 {[%clk 0:03:02.8]} 3... c6 {[%clk 0:03:00.2]} 4. e3
{[%clk 0:03:03]} 4... Nf6 {[%clk 0:03:00]} 5. b3 {[%clk 0:03:02.3]} 5... Nbd7
{[%clk 0:02:52.5]} 6. Bd3 {[%clk 0:02:59.2]} 6... Bb4+ {[%clk 0:02:40]} 7. Nbd2
{[%clk 0:02:50.8]} 7... Ne4 {[%clk 0:02:05]} 8. O-O {[%clk 0:02:49.8]} 8... f5
{[%clk 0:02:02.8]} 9. a3 {[%clk 0:02:49.3]} 9... Bd6 {[%clk 0:02:01.8]} 10. cxd5
{[%clk 0:02:46.3]} 10... exd5 {[%clk 0:02:00.3]} 11. g3 {[%clk 0:02:46.4]} 11...
O-O {[%clk 0:01:59.4]} 12. Nh4 {[%clk 0:02:45.7]} 12... Qe7 {[%clk 0:01:40.1]}
13. f4 {[%clk 0:02:37.2]} 13... Nxg3 {[%clk 0:01:33.1]} 14. hxg3 {[%clk
0:02:29.5]} 14... Qxe3+ {[%clk 0:01:32.4]} 15. Kg2 {[%clk 0:02:30.5]} 15... Qxd3
{[%clk 0:01:31.3]} 16. Rf3 {[%clk 0:02:31.8]} 16... Qxd4 {[%clk 0:01:29.9]} 17.
Rb1 {[%clk 0:02:28.1]} 17... Nf6 {[%clk 0:01:23.6]} 18. Bb2 {[%clk 0:02:28.4]}
18... Qb6 {[%clk 0:01:21.6]} 19. Qc2 {[%clk 0:02:29.1]} 19... Ne4 {[%clk
0:01:00.5]} 20. Rh1 {[%clk 0:02:21.4]} 20... Bd7 {[%clk 0:00:56.3]} 21. Nf1
{[%clk 0:02:10.8]} 21... Rae8 {[%clk 0:00:51]} 22. Ne3 {[%clk 0:02:11.6]} 22...
Qc5 {[%clk 0:00:31.8]} 23. Qd3 {[%clk 0:02:08.3]} 23... Rf7 {[%clk 0:00:29.7]}
24. b4 {[%clk 0:02:04.4]} 24... Qb6 {[%clk 0:00:25.8]} 25. Bd4 {[%clk
0:01:49.7]} 25... Qc7 {[%clk 0:00:25.6]} 26. Ba1 {[%clk 0:01:48.3]} 26... Be6
{[%clk 0:00:21.1]} 27. Qd4 {[%clk 0:01:47.9]} 27... b6 {[%clk 0:00:21.2]} 28.
Qb2 {[%clk 0:01:40.5]} 28... c5 {[%clk 0:00:19.8]} 29. Rc1 {[%clk 0:01:41.1]}
29... d4 {[%clk 0:00:18]} 30. bxc5 {[%clk 0:01:37.3]} 30... bxc5 {[%clk
0:00:17.7]} 31. Nc4 {[%clk 0:01:37.6]} 31... Bd5 {[%clk 0:00:16.6]} 32. Kh2
{[%clk 0:01:35.1]} 32... Bf8 {[%clk 0:00:11.5]} 33. Ne5 {[%clk 0:01:34.8]} 33...
Rxe5 {[%clk 0:00:11.6]} 34. fxe5 {[%clk 0:01:35.5]} 34... Qxe5 {[%clk
0:00:13.5]} 35. Rcf1 {[%clk 0:01:32.1]} 35... Bd6 {[%clk 0:00:09.3]} 36. Rf4
{[%clk 0:01:30.3]} 36... g5 {[%clk 0:00:06.2]} 37. Nxf5 {[%clk 0:01:24.9]} 37...
Rxf5 {[%clk 0:00:03.4]} 38. Rxf5 {[%clk 0:01:19.6]} 38... Qxg3+ {[%clk 0:00:04]}
39. Kh1 {[%clk 0:01:20.8]} 39... Nf2# {[%clk 0:00:04.7]} 0-1

[Event "*** Titled Tuesday Blitz"]
[Site "Chess.com"]
[Date "2018.05.01"]
[Round "3"]
[White "JoachimBN"]
[Black "nOcHeaTiNgKiD"]
[Result "1/2-1/2"]
[WhiteElo "2551"]
[BlackElo "2373"]
[TimeControl "180+2"]
[EndTime "13:38:44 PDT"]
[Termination "Game drawn by repetition"]

1. c4 {[%clk 0:03:01.9]} 1... e6 {[%clk 0:02:58.5]} 2. Nc3 {[%clk 0:03:02.1]}
2... d5 {[%clk 0:02:59.3]} 3. e3 {[%clk 0:03:03.6]} 3... Nf6 {[%clk 0:02:59.8]}
4. Nf3 {[%clk 0:03:04.3]} 4... Be7 {[%clk 0:03:00.9]} 5. b3 {[%clk 0:03:05.2]}
5... O-O {[%clk 0:03:00.5]} 6. Bb2 {[%clk 0:03:06.7]} 6... a6 {[%clk 0:02:58.7]}
7. Qc2 {[%clk 0:03:03.7]} 7... Nbd7 {[%clk 0:02:56.8]} 8. Be2 {[%clk 0:03:04]}
8... b6 {[%clk 0:02:55.4]} 9. O-O-O {[%clk 0:02:57.1]} 9... c5 {[%clk
0:02:54.3]} 10. g4 {[%clk 0:02:55.2]} 10... Bb7 {[%clk 0:02:44.2]} 11. Bd3
{[%clk 0:02:43.7]} 11... dxc4 {[%clk 0:02:41.6]} 12. Be2 {[%clk 0:02:44.8]}
12... cxb3 {[%clk 0:02:40.4]} 13. axb3 {[%clk 0:02:46.3]} 13... Nd5 {[%clk
0:02:36.2]} 14. Nxd5 {[%clk 0:02:42.9]} 14... Bxd5 {[%clk 0:02:35.3]} 15. g5
{[%clk 0:02:43.5]} 15... b5 {[%clk 0:02:22.2]} 16. Rhg1 {[%clk 0:02:26.1]} 16...
Qa5 {[%clk 0:02:12.7]} 17. e4 {[%clk 0:02:13.1]} 17... Bb7 {[%clk 0:02:01.8]}
18. Bc3 {[%clk 0:02:13.9]} 18... Qa3+ {[%clk 0:01:56.8]} 19. Bb2 {[%clk
0:02:14.8]} 19... Qb4 {[%clk 0:01:50.3]} 20. d3 {[%clk 0:02:06]} 20... c4 {[%clk
0:01:40.5]} 21. dxc4 {[%clk 0:02:01.7]} 21... Nc5 {[%clk 0:01:34.1]} 22. Nd2
{[%clk 0:01:58.3]} 22... bxc4 {[%clk 0:00:57.2]} 23. Bxc4 {[%clk 0:01:57.7]}
23... Rac8 {[%clk 0:00:53.3]} 24. Kb1 {[%clk 0:01:55.8]} 24... Rfd8 {[%clk
0:00:48.5]} 25. Bc3 {[%clk 0:01:56.3]} 25... Qa3 {[%clk 0:00:45.7]} 26. Bb2
{[%clk 0:01:57.4]} 26... Qb4 {[%clk 0:00:44.8]} 27. f3 {[%clk 0:01:58.8]} 27...
a5 {[%clk 0:00:33.1]} 28. Qc3 {[%clk 0:01:47.3]} 28... Qxc3 {[%clk 0:00:33.5]}
29. Bxc3 {[%clk 0:01:49.2]} 29... a4 {[%clk 0:00:31.2]} 30. Ba5 {[%clk
0:01:39.2]} 30... Rd4 {[%clk 0:00:27.6]} 31. Bc3 {[%clk 0:01:31.8]} 31... Rdd8
{[%clk 0:00:27.8]} 32. Ba5 {[%clk 0:01:13]} 32... Rd4 {[%clk 0:00:28.3]} 33. Bc3
{[%clk 0:00:38.4]} 33... Rdd8 {[%clk 0:00:29.1]} 34. Ba5 {[%clk 0:00:34.8]}
1/2-1/2

[Event "*** Titled Tuesday Blitz"]
[Site "Chess.com"]
[Date "2018.05.01"]
[Round "3"]
[White "LastHeroJr"]
[Black "michaelq2d5"]
[Result "0-1"]
[WhiteElo "2445"]
[BlackElo "2694"]
[TimeControl "180+2"]
[EndTime "13:38:46 PDT"]
[Termination "michaelq2d5 won by resignation"]

1. e4 {[%clk 0:03:01.9]} 1... e5 {[%clk 0:03:00.8]} 2. Nf3 {[%clk 0:03:03.1]}
2... Nc6 {[%clk 0:03:02.4]} 3. Bc4 {[%clk 0:03:04.2]} 3... Bc5 {[%clk
0:03:02.6]} 4. O-O {[%clk 0:03:04.6]} 4... Nf6 {[%clk 0:03:03.9]} 5. d3 {[%clk
0:03:06]} 5... d6 {[%clk 0:03:04.6]} 6. a4 {[%clk 0:03:06.7]} 6... a6 {[%clk
0:03:05.8]} 7. Re1 {[%clk 0:03:06]} 7... Ba7 {[%clk 0:03:07.2]} 8. c3 {[%clk
0:03:00.3]} 8... O-O {[%clk 0:03:05.6]} 9. h3 {[%clk 0:02:59.7]} 9... h6 {[%clk
0:03:06.4]} 10. Nbd2 {[%clk 0:02:58.9]} 10... Re8 {[%clk 0:03:07.6]} 11. Nf1
{[%clk 0:02:43.1]} 11... Be6 {[%clk 0:03:07.7]} 12. Bxe6 {[%clk 0:02:41.8]}
12... Rxe6 {[%clk 0:03:06.2]} 13. Be3 {[%clk 0:02:39]} 13... Bxe3 {[%clk
0:02:58.6]} 14. Nxe3 {[%clk 0:02:39.7]} 14... g6 {[%clk 0:02:52.7]} 15. b4
{[%clk 0:02:34.2]} 15... Re8 {[%clk 0:02:47]} 16. b5 {[%clk 0:02:31.9]} 16...
Nb8 {[%clk 0:02:44.3]} 17. Qb3 {[%clk 0:02:17.5]} 17... Nbd7 {[%clk 0:02:41.9]}
18. bxa6 {[%clk 0:02:09.3]} 18... Nc5 {[%clk 0:02:38.6]} 19. Qc4 {[%clk
0:02:05.5]} 19... Rxa6 {[%clk 0:02:39.5]} 20. a5 {[%clk 0:01:51.6]} 20... Qa8
{[%clk 0:02:30.7]} 21. d4 {[%clk 0:01:11.4]} 21... Ncxe4 {[%clk 0:02:27.9]} 22.
dxe5 {[%clk 0:01:06.5]} 22... dxe5 {[%clk 0:02:28.8]} 23. Ng4 {[%clk 0:00:52.4]}
23... Rc6 {[%clk 0:02:06.5]} 24. Qb4 {[%clk 0:00:36]} 24... Nxg4 {[%clk
0:01:19.8]} 25. Rxe4 {[%clk 0:00:36]} 25... Nf6 {[%clk 0:01:20.9]} 26. Rxe5
{[%clk 0:00:36.9]} 26... Rxe5 {[%clk 0:01:22.2]} 27. Nxe5 {[%clk 0:00:38.8]}
27... Re6 {[%clk 0:01:23.7]} 28. Nf3 {[%clk 0:00:35.7]} 28... Nd5 {[%clk
0:01:16.4]} 29. Qc5 {[%clk 0:00:31.5]} 29... b6 {[%clk 0:01:11.8]} 30. Qd4
{[%clk 0:00:29.2]} 30... bxa5 {[%clk 0:01:07.8]} 31. c4 {[%clk 0:00:27.1]} 31...
Nb4 {[%clk 0:01:04.9]} 32. Qc5 {[%clk 0:00:25.8]} 32... Nc6 {[%clk 0:01:01.4]}
33. Qb5 {[%clk 0:00:20.6]} 33... Qd8 {[%clk 0:00:48.6]} 34. Qc5 {[%clk
0:00:18.5]} 34... Kg7 {[%clk 0:00:48.1]} 35. Qe3 {[%clk 0:00:19]} 35... Rxe3
{[%clk 0:00:48.6]} 0-1

[Event "*** Titled Tuesday Blitz"]
[Site "Chess.com"]
[Date "2018.05.01"]
[Round "3"]
[White "pultineviciuspaulius"]
[Black "NormWeinstein"]
[Result "1-0"]
[WhiteElo "2543"]
[BlackElo "2289"]
[TimeControl "180+2"]
[EndTime "13:38:54 PDT"]
[Termination "pultineviciuspaulius won by resignation"]

1. e4 {[%clk 0:03:01.9]} 1... c5 {[%clk 0:02:59.9]} 2. Nf3 {[%clk 0:03:02.2]}
2... d6 {[%clk 0:02:59.1]} 3. d4 {[%clk 0:03:03.6]} 3... Nf6 {[%clk 0:03:00.1]}
4. Nc3 {[%clk 0:03:04.1]} 4... cxd4 {[%clk 0:03:00.7]} 5. Qxd4 {[%clk
0:03:05.6]} 5... Nbd7 {[%clk 0:03:01]} 6. b3 {[%clk 0:03:06.3]} 6... a6 {[%clk
0:02:55]} 7. Bb2 {[%clk 0:03:07.1]} 7... e5 {[%clk 0:02:43]} 8. Qd2 {[%clk
0:02:58.1]} 8... b5 {[%clk 0:02:37.4]} 9. O-O-O {[%clk 0:02:16.8]} 9... Bb7
{[%clk 0:02:37.7]} 10. Bd3 {[%clk 0:02:06.3]} 10... Be7 {[%clk 0:02:38.1]} 11.
Rde1 {[%clk 0:01:59.8]} 11... O-O {[%clk 0:02:36.7]} 12. Kb1 {[%clk 0:01:07.8]}
12... Rc8 {[%clk 0:02:37.1]} 13. Nh4 {[%clk 0:00:51.2]} 13... b4 {[%clk
0:02:31.9]} 14. Nd1 {[%clk 0:00:47.1]} 14... Nxe4 {[%clk 0:02:16.4]} 15. Bxe4
{[%clk 0:00:38.8]} 15... Bxe4 {[%clk 0:02:16.4]} 16. Rxe4 {[%clk 0:00:37.3]}
16... Bxh4 {[%clk 0:02:16.9]} 17. Qxd6 {[%clk 0:00:37.3]} 17... Be7 {[%clk
0:02:05]} 18. Qd2 {[%clk 0:00:37.9]} 18... a5 {[%clk 0:01:30.3]} 19. Ne3 {[%clk
0:00:35.2]} 19... Bg5 {[%clk 0:01:30.2]} 20. Rg4 {[%clk 0:00:25.8]} 20... Bh6
{[%clk 0:01:22.8]} 21. Qe2 {[%clk 0:00:20]} 21... Nf6 {[%clk 0:01:20]} 22. Rd1
{[%clk 0:00:18]} 22... Qe8 {[%clk 0:01:08.9]} 23. Rg3 {[%clk 0:00:17.6]} 23...
Bf4 {[%clk 0:01:08.6]} 24. Rf3 {[%clk 0:00:11.9]} 24... Qe6 {[%clk 0:01:06.7]}
25. g3 {[%clk 0:00:10.1]} 25... Bh6 {[%clk 0:00:57.9]} 26. Nf5 {[%clk
0:00:10.2]} 26... Ne8 {[%clk 0:00:30.1]} 27. Qxe5 {[%clk 0:00:10.7]} 27... Qc6
{[%clk 0:00:24.4]} 28. Ne7+ {[%clk 0:00:11.6]} 1-0

[Event "*** Titled Tuesday Blitz"]
[Site "Chess.com"]
[Date "2018.05.01"]
[Round "3"]
[White "vugarrasulov"]
[Black "FMJoseHerrera"]
[Result "1-0"]
[WhiteElo "2730"]
[BlackElo "2408"]
[TimeControl "180+2"]
[EndTime "13:38:59 PDT"]
[Termination "vugarrasulov won on time"]

1. e4 {[%clk 0:03:01.9]} 1... c5 {[%clk 0:03:00.1]} 2. Nf3 {[%clk 0:03:02.8]}
2... e6 {[%clk 0:03:00.4]} 3. d4 {[%clk 0:03:03.8]} 3... cxd4 {[%clk 0:03:02.3]}
4. Nxd4 {[%clk 0:03:05.6]} 4... a6 {[%clk 0:03:03.8]} 5. Nc3 {[%clk 0:03:06.4]}
5... Qc7 {[%clk 0:03:05.1]} 6. f4 {[%clk 0:03:07.4]} 6... b5 {[%clk 0:03:05.5]}
7. Bd3 {[%clk 0:03:07.4]} 7... Bb7 {[%clk 0:03:06.4]} 8. Be3 {[%clk 0:03:06.7]}
8... d6 {[%clk 0:03:06.5]} 9. Qf3 {[%clk 0:03:03.7]} 9... Nd7 {[%clk 0:03:05.7]}
10. O-O {[%clk 0:02:53]} 10... Ngf6 {[%clk 0:03:04.2]} 11. Rae1 {[%clk
0:02:48.6]} 11... Be7 {[%clk 0:03:03.1]} 12. a3 {[%clk 0:02:49.6]} 12... Rc8
{[%clk 0:03:00.6]} 13. Qg3 {[%clk 0:02:45.8]} 13... h5 {[%clk 0:02:50.2]} 14. h3
{[%clk 0:02:33.2]} 14... h4 {[%clk 0:02:06.5]} 15. Qf3 {[%clk 0:02:25.7]} 15...
Nh5 {[%clk 0:01:51.9]} 16. f5 {[%clk 0:02:17.6]} 16... e5 {[%clk 0:01:36.8]} 17.
Nde2 {[%clk 0:02:05.6]} 17... Nc5 {[%clk 0:01:20.3]} 18. b4 {[%clk 0:01:50.3]}
18... Nd7 {[%clk 0:01:09.7]} 19. a4 {[%clk 0:01:46.7]} 19... Ng3 {[%clk
0:00:55.5]} 20. Nxg3 {[%clk 0:01:33.5]} 20... Qxc3 {[%clk 0:00:51.1]} 21. Nh5
{[%clk 0:01:28.5]} 21... Kf8 {[%clk 0:00:36.5]} 22. axb5 {[%clk 0:01:24.6]}
22... axb5 {[%clk 0:00:25.1]} 23. Bxb5 {[%clk 0:01:26.1]} 23... Nf6 {[%clk
0:00:20.8]} 24. Nxf6 {[%clk 0:01:27]} 24... gxf6 {[%clk 0:00:22]} 25. Bd3 {[%clk
0:01:27.7]} 25... Qc6 {[%clk 0:00:20.5]} 26. b5 {[%clk 0:01:27.6]} 26... Qd7
{[%clk 0:00:21.5]} 27. c4 {[%clk 0:01:28]} 27... Bd8 {[%clk 0:00:20.6]} 28. Ra1
{[%clk 0:01:28.1]} 28... Ke7 {[%clk 0:00:22]} 29. Ra7 {[%clk 0:01:28.3]} 29...
Rb8 {[%clk 0:00:23]} 30. c5 {[%clk 0:01:27.5]} 30... dxc5 {[%clk 0:00:22.5]} 31.
Bxc5+ {[%clk 0:01:29.4]} 31... Ke8 {[%clk 0:00:23.5]} 32. Bc4 {[%clk 0:01:28.6]}
32... Be7 {[%clk 0:00:23.9]} 33. Bxe7 {[%clk 0:01:27.1]} 33... Qxe7 {[%clk
0:00:25.8]} 34. Qe3 {[%clk 0:01:23.7]} 34... Rg8 {[%clk 0:00:26.2]} 35. Bd5
{[%clk 0:01:20.6]} 35... Rg3 {[%clk 0:00:25.2]} 36. Qb6 {[%clk 0:01:19.8]} 36...
Qb4 {[%clk 0:00:13.6]} 37. Rxb7 {[%clk 0:01:19.6]} 37... Rd8 {[%clk 0:00:14.9]}
38. Qxf6 {[%clk 0:01:14.3]} 38... Qd4+ {[%clk 0:00:15]} 39. Kh1 {[%clk
0:01:14.6]} 1-0

[Event "*** Titled Tuesday Blitz"]
[Site "Chess.com"]
[Date "2018.05.01"]
[Round "3"]
[White "gmcorrales"]
[Black "b_6"]
[Result "1-0"]
[WhiteElo "2731"]
[BlackElo "2303"]
[TimeControl "180+2"]
[EndTime "13:39:01 PDT"]
[Termination "gmcorrales won by resignation"]

1. b3 {[%clk 0:02:51.1]} 1... d5 {[%clk 0:02:59.3]} 2. f4 {[%clk 0:02:44.2]}
2... Nf6 {[%clk 0:02:51.4]} 3. Nf3 {[%clk 0:02:45]} 3... g6 {[%clk 0:02:52.4]}
4. Bb2 {[%clk 0:02:45.5]} 4... Bg7 {[%clk 0:02:54]} 5. e3 {[%clk 0:02:38.1]}
5... O-O {[%clk 0:02:54.4]} 6. Be2 {[%clk 0:02:01.9]} 6... c5 {[%clk 0:02:53.4]}
7. O-O {[%clk 0:02:02.3]} 7... Nc6 {[%clk 0:02:51.7]} 8. Qe1 {[%clk 0:01:57.8]}
8... d4 {[%clk 0:02:41.5]} 9. Na3 {[%clk 0:01:57.8]} 9... Nd5 {[%clk 0:02:28.5]}
10. Qh4 {[%clk 0:01:23.4]} 10... e5 {[%clk 0:01:53.4]} 11. Qxd8 {[%clk
0:01:20.3]} 11... Rxd8 {[%clk 0:01:49.8]} 12. fxe5 {[%clk 0:01:08.7]} 12... dxe3
{[%clk 0:01:27.5]} 13. Rad1 {[%clk 0:01:07.6]} 13... Bg4 {[%clk 0:01:15.7]} 14.
Nc4 {[%clk 0:01:06]} 14... Nf4 {[%clk 0:00:57.6]} 15. Rfe1 {[%clk 0:01:00.2]}
15... exd2 {[%clk 0:00:29.8]} 16. Ncxd2 {[%clk 0:01:00.4]} 16... Nb4 {[%clk
0:00:26.3]} 17. Bc4 {[%clk 0:00:36.6]} 17... Nxc2 {[%clk 0:00:17.9]} 18. Re4
{[%clk 0:00:36.5]} 18... Bxf3 {[%clk 0:00:19]} 19. gxf3 {[%clk 0:00:37.6]} 19...
Ne6 {[%clk 0:00:17.4]} 20. Kf2 {[%clk 0:00:24.3]} 20... Ng5 {[%clk 0:00:17.9]}
21. Rg4 {[%clk 0:00:23.2]} 21... Ne6 {[%clk 0:00:17.3]} 22. Bxe6 {[%clk
0:00:21.5]} 22... fxe6 {[%clk 0:00:18]} 23. Ke2 {[%clk 0:00:22.7]} 23... Rd7
{[%clk 0:00:18.3]} 24. Rc4 {[%clk 0:00:23.4]} 24... b6 {[%clk 0:00:19]} 25. Rxc2
{[%clk 0:00:24.3]} 25... Rad8 {[%clk 0:00:18.7]} 26. f4 {[%clk 0:00:25]} 26...
Bh6 {[%clk 0:00:19.6]} 27. Rf1 {[%clk 0:00:25.8]} 27... Rf7 {[%clk 0:00:18.9]}
28. Ne4 {[%clk 0:00:26.6]} 28... Rxf4 {[%clk 0:00:18.8]} 29. Nf6+ {[%clk
0:00:26.6]} 29... Kf7 {[%clk 0:00:19.2]} 30. Rxf4 {[%clk 0:00:27.2]} 30... Bxf4
{[%clk 0:00:20.9]} 31. Kf3 {[%clk 0:00:29.1]} 31... Bg5 {[%clk 0:00:21.2]} 32.
Ne4 {[%clk 0:00:28.5]} 32... Rd3+ {[%clk 0:00:20.7]} 33. Kg2 {[%clk 0:00:29.6]}
33... Be7 {[%clk 0:00:21.1]} 34. Rf2+ {[%clk 0:00:29.6]} 34... Kg7 {[%clk
0:00:21.8]} 35. Rd2 {[%clk 0:00:29.3]} 35... Re3 {[%clk 0:00:22.8]} 36. Nf6
{[%clk 0:00:29.7]} 1-0